fUSD/lending_fUSD_20250115
["ID","MTS","AMOUNT","RATE_DAILY","PERIOD"]
[349070870,1736960643895,500.0,0.00010958,2]
[349070871,1736960652455,500.0,0.00010958,2]
[349070872,1736960655070,500.0,0.00010958,2]
[349070873,1736960659392,500.0,0.00010958,2]
[349070874,1736960674969,500.0,0.00010958,2]
[349070875,1736960681759,500.0,0.00010958,2]
[349070876,1736960692931,500.0,0.00010958,2]
[349070877,1736960713405,500.0,0.00010958,2]
[349070878,1736960716468,500.0,0.00010958,2]
[349070879,1736960736503,500.0,0.00010958,2]
[349070880,1736960745341,500.0,0.00010958,2]
[349070881,1736960764101,500.0,0.00010958,2]
[349070882,1736960772264,500.0,0.00010958,2]
[349070883,1736960788814,500.0,0.00010958,2]
[349070884,1736960803096,500.0,0.00010958,2]
[349070885,1736960821007,500.0,0.00010958,2]
[349070887,1736960838173,500.0,0.00010958,2]
[349070888,1736960856935,500.0,0.00010958,2]
[349070890,1736960914773,500.0,0.00010958,2]
[349070891,1736960931460,500.0,0.00010958,2]
[349070893,1736960961861,165.42,0.00010137,2]
[349070894,1736960990407,500.0,0.00010958,2]
[349070895,1736961007537,500.0,0.00010958,2]
[349070896,1736961015104,500.0,0.00010958,2]
[349070897,1736961024315,183.01713079,0.00010958,2]
[349070898,1736961024346,365.03286921,0.00010958,2]
[349070928,1736961031543,-1683.01713079,0.00016713,2]
[349070929,1736961031554,-4018.0,0.00016813,2]
[349070930,1736961031564,-210.75,0.00016813,2]
[349070931,1736961031575,-210.75,0.0002349,2]
[349070932,1736961031585,-300.06447958,0.00030165,10]
[349070933,1736961031595,-210.75,0.00030166,2]
[349070934,1736961031605,-1009.034,0.00036842,46]
[349070935,1736961031615,-210.75,0.00036842,2]
[349070936,1736961031625,-1032.3608,0.00036849,10]
[349070937,1736961031635,-175.69,0.00039139,2]
[349070938,1736961031646,-200.0,0.00039998,60]
[349070939,1736961031656,-1000.0,0.00039999,2]
[349070940,1736961031666,-150.0,0.00039999,4]
[349070941,1736961031675,-19226.78649612,0.0004,2]
[349070942,1736961031692,-56961.21350388,0.0004,2]
[349070943,1736961031702,-1000.0,0.00040425,2]
[349070944,1736961031712,-250.0,0.00040431,2]
[349070945,1736961031722,-699.82,0.00040519,2]
[349070946,1736961031733,-500.0,0.00040565,2]
[349070947,1736961031743,-250.0,0.00040585,120]
[349070948,1736961031753,-201.2707142,0.000409,2]
[349070951,1736961032027,-374.08,0.00040982,2]
[349070952,1736961032038,-1000.0,0.00041057,120]
[349070953,1736961032048,-247.78,0.00041057,2]
[349070954,1736961032058,-621.9,0.00041057,2]
[349070955,1736961032069,-247.78,0.00041067,2]
[349070956,1736961032079,-247.78,0.00041078,2]
[349070957,1736961032089,-247.78,0.00041089,2]
[349070959,1736961032098,-247.78,0.000411,2]
[349070961,1736961032107,-247.78,0.00041111,2]
[349070962,1736961032117,-247.78,0.00041121,2]
[349070964,1736961032126,-247.78,0.00041132,2]
[349070966,1736961032136,-247.78,0.00041143,2]
[349070968,1736961032146,-247.78,0.00041154,2]
[349070969,1736961032155,-247.78,0.00041164,2]
[349070971,1736961032165,-247.78,0.00041175,2]
[349070972,1736961032174,-247.78,0.00041186,2]
[349070974,1736961032183,-247.78,0.00041197,2]
[349070975,1736961032192,-247.78,0.00041208,2]
[349070976,1736961032202,-247.78,0.00041218,2]
[349070978,1736961032211,-247.78,0.00041229,2]
[349070979,1736961032220,-247.78,0.0004124,2]
[349070980,1736961032230,-247.78,0.00041251,2]
[349070981,1736961032239,-170.53,0.00041259,120]
[349070982,1736961032248,-247.78,0.00041262,2]
[349070983,1736961032258,-175.69,0.00041403,2]
[349070984,1736961032267,-165.42,0.00041849,2]
[349070985,1736961032277,-200.0,0.00041898,2]
[349070986,1736961032290,-261.37713494,0.00042,120]
[349070987,1736961032300,-166.39,0.00042205,2]
[349070988,1736961032309,-4509.0,0.00042447,117]
[349070989,1736961032320,-23900.0,0.00042573,2]
[349070990,1736961032336,-179.55167986,0.0004296,15]
[349070991,1736961032345,-1670.97537789,0.00043,120]
[349070992,1736961032355,-726.40162673,0.00043,2]
[349070993,1736961032368,-7893.45161813,0.00043,2]
[349070994,1736961032388,-15147.0,0.00043,2]
[349070995,1736961032401,-503.76,0.00043,2]
[349070996,1736961032413,-1101.0,0.00043,2]
[349070997,1736961032425,-3151.48161544,0.00043,2]
[349070998,1736961032435,-3000.0,0.0004306,16]
[349070999,1736961032446,-6901.14580399,0.0004307,2]
[349071000,1736961032455,-3000.0,0.0004309,17]
[349071001,1736961032465,-102.39269732,0.000431,2]
[349071002,1736961032477,-397.60730268,0.000431,2]
[349071003,1736961032487,-411.3523,0.000431,2]
[349071004,1736961032497,-213.8118,0.000431,2]
[349071005,1736961032507,-2500.0,0.000431,2]
[349071006,1736961032518,-1120.12,0.00043199,7]
[349071007,1736961032530,-2415.21,0.00043199,7]
[349071008,1736961032540,-1026.5,0.00043199,7]
[349071009,1736961032549,-716.96,0.00043199,7]
[349071010,1736961032559,-1656.98,0.00043199,7]
[349071011,1736961032568,-500.0,0.00043199,7]
[349071012,1736961032578,-666.66,0.00043199,7]
[349071013,1736961032588,-152.742293,0.00043199,7]
[349071014,1736961032598,-668.51,0.00043199,7]
[349071015,1736961032608,-160.823698,0.00043199,7]
[349071016,1736961032618,-155.832257,0.00043199,7]
[349071017,1736961032627,-500.0,0.00043199,7]
[349071018,1736961032637,-155.887193,0.00043199,7]
[349071019,1736961032647,-500.0,0.00043199,7]
[349071020,1736961032657,-1823.64,0.00043199,7]
[349071021,1736961032666,-472.86641286,0.00043199,7]
[349071022,1736961032677,-393.43358714,0.00043199,7]
[349071023,1736961032687,-500.0,0.00043199,7]
[349071024,1736961032697,-829.5,0.00043199,7]
[349071025,1736961032707,-784.39705536,0.00043199,7]
[349071026,1736961032719,-1596.77294464,0.00043199,7]
[349071027,1736961032729,-312.80282968,0.00043199,2]
[349071028,1736961032739,-633.06,0.00043199,7]
[349071029,1736961032749,-736.03,0.00043199,7]
[349071030,1736961032759,-1113.15,0.00043199,7]
[349071031,1736961032769,-533.51,0.00043199,7]
[349071032,1736961032783,-570.29,0.00043199,7]
[349071033,1736961032794,-500.0,0.00043199,7]
[349071034,1736961032806,-500.0,0.00043199,7]
[349071035,1736961032817,-1641.19,0.00043199,7]
[349071036,1736961032827,-500.0,0.00043199,7]
[349071037,1736961032839,-703.75,0.00043199,7]
[349071038,1736961032850,-36740.00632305,0.000432,2]
[349071039,1736961032876,-13610.98381802,0.000432,2]
[349071040,1736961032888,-581.78040484,0.000432,2]
[349071041,1736961032900,-1727.07668005,0.000432,2]
[349071042,1736961032916,-60883.77756999,0.000432,2]
[349071043,1736961032928,-2754.10569044,0.000432,2]
[349071044,1736961032940,-275.83066418,0.000432,2]
[349071045,1736961032952,-623.49309,0.000432,2]
[349071046,1736961032963,-1187.8,0.000432,2]
[349071047,1736961032987,-3910.55302001,0.000432,2]
[349071058,1736961037440,-500.0,0.00043199,7]
[349071060,1736961037451,-290.799199,0.00043199,7]
[349071063,1736961037463,-209.200801,0.00043199,7]
[349071065,1736961037473,-63903.03104835,0.000432,2]
[349071067,1736961037484,-3407.00090258,0.000432,2]
[349071069,1736961037496,-83360.50428849,0.000432,2]
[349071071,1736961037506,-312.80282956,0.00043216,2]
[349071073,1736961037515,-312.80282956,0.00043233,2]
[349071075,1736961037526,-312.80282956,0.00043249,2]
[349071077,1736961037535,-312.80282956,0.00043266,2]
[349071079,1736961037545,-312.80282956,0.00043283,2]
[349071081,1736961037555,-3166.5811,0.00043299,2]
[349071082,1736961037564,-500.0,0.00043299,7]
[349071083,1736961037574,-500.0,0.00043299,7]
[349071084,1736961037583,-312.80282956,0.000433,2]
[349071085,1736961037593,-1000.0,0.000433,2]
[349071086,1736961037603,-5276.01910692,0.000433,2]
[349071087,1736961037625,-1051.05000021,0.000433,2]
[349071088,1736961037637,-500.0,0.000433,2]
[349071089,1736961037648,-390.50990891,0.000433,2]
[349071090,1736961037659,-351.4244404,0.000433,2]
[349071091,1736961037670,-28561.77724356,0.000433,2]
[349071092,1736961037679,-312.80282956,0.00043316,2]
[349071093,1736961037688,-312.80282956,0.00043333,2]
[349071094,1736961037698,-312.80282956,0.0004335,2]
[349071095,1736961037707,-312.80282956,0.00043367,2]
[349071096,1736961037717,-312.80282956,0.00043383,2]
[349071097,1736961037727,-5000.0,0.00043389,2]
[349071098,1736961037736,-866.3,0.00043397,7]
[349071099,1736961037747,-500.0,0.00043397,7]
[349071100,1736961037756,-829.5,0.00043397,7]
[349071101,1736961037766,-2381.17,0.00043397,7]
[349071102,1736961037775,-633.06,0.00043397,7]
[349071103,1736961037784,-1113.15,0.00043397,7]
[349071104,1736961037794,-533.51,0.00043397,7]
[349071105,1736961037805,-500.0,0.00043397,7]
[349071106,1736961037815,-1641.19,0.00043397,7]
[349071107,1736961037825,-703.75,0.00043397,7]
[349071108,1736961037835,-3000.0,0.00043398,31]
[349071109,1736961037845,-3000.0,0.00043398,31]
[349071110,1736961037855,-1120.12,0.00043398,7]
[349071111,1736961037864,-2415.21,0.00043398,7]
[349071112,1736961037873,-1026.5,0.00043398,7]
[349071113,1736961037883,-716.96,0.00043398,7]
[349071114,1736961037892,-1656.98,0.00043398,7]
[349071115,1736961037902,-500.0,0.00043398,7]
[349071116,1736961037911,-644.35881749,0.00043398,7]
[349071117,1736961037923,-22.30118251,0.00043398,7]
[349071118,1736961037932,-152.742293,0.00043398,7]
[349071119,1736961037942,-668.51,0.00043398,7]
[349071121,1736961037952,-155.887193,0.00043398,7]
[349071123,1736961037962,-500.0,0.00043398,7]
[349071125,1736961037971,-1823.64,0.00043398,7]
[349071126,1736961037981,-736.03,0.00043398,7]
[349071128,1736961037990,-570.29,0.00043398,7]
[349071129,1736961037999,-178.40742787,0.00043398,7]
[349071130,1736961038009,-1756.10890624,0.00043399,2]
[349071131,1736961038020,-8458.37771961,0.00043399,2]
[349071132,1736961038038,-3612.36822227,0.00043399,2]
[349071133,1736961038050,-31762.09195188,0.00043399,2]
[349071134,1736961038059,-16232.4434228,0.00043399,120]
[349071135,1736961038069,-1299.36907062,0.00043399,18]
[349071136,1736961038079,-500.0,0.00043399,7]
[349071137,1736961038089,-1183.16,0.00043399,7]
[349071138,1736961038098,-2273.55,0.00043399,7]
[349071139,1736961038107,-500.0,0.00043399,7]
[349071140,1736961038117,-500.0,0.00043399,7]
[349071141,1736961038126,-1069.42,0.00043399,7]
[349071142,1736961038136,-500.0,0.00043399,7]
[349071143,1736961038145,-500.0,0.00043399,7]
[349071144,1736961038154,-1688.19,0.00043399,7]
[349071145,1736961038163,-584.5,0.00043399,7]
[349071146,1736961038173,-1788.15,0.00043399,7]
[349071147,1736961038183,-641.79,0.00043399,7]
[349071148,1736961038192,-1339.41,0.00043399,7]
[349071149,1736961038201,-500.0,0.00043399,7]
[349071150,1736961038211,-595.13,0.00043399,7]
[349071151,1736961038220,-941.3,0.00043399,7]
[349071152,1736961038230,-179.55167986,0.00043399,15]
[349071153,1736961038239,-2109.7,0.00043399,2]
[349071154,1736961038249,-1299.36907059,0.00043399,18]
[349071155,1736961038258,-1299.36907059,0.000434,18]
[349071156,1736961038269,-1299.36907059,0.000434,18]
[349071157,1736961038280,-12915.45982385,0.000434,2]
[349071158,1736961038290,-658.81793309,0.000434,30]
[349071159,1736961038299,-658.81793309,0.000434,30]
[349071160,1736961038308,-658.81793309,0.000434,30]
[349071161,1736961038319,-658.81793309,0.000434,30]
[349071162,1736961038330,-658.81793309,0.000434,30]
[349071163,1736961038340,-658.81793309,0.000434,30]
[349071164,1736961038349,-658.81793309,0.000434,30]
[349071165,1736961038359,-658.81793309,0.000434,30]
[349071166,1736961038370,-658.81793309,0.000434,30]
[349071167,1736961038379,-658.81793309,0.000434,30]
[349071168,1736961038390,-658.81793309,0.000434,30]
[349071169,1736961038400,-658.81793309,0.000434,30]
[349071170,1736961038411,-658.81793309,0.000434,30]
[349071171,1736961038420,-658.81793309,0.000434,30]
[349071172,1736961038430,-658.81793309,0.000434,30]
[349071173,1736961038439,-658.81793309,0.000434,30]
[349071174,1736961038449,-658.81793309,0.000434,30]
[349071175,1736961038458,-658.81793309,0.000434,30]
[349071176,1736961038467,-658.81793309,0.000434,30]
[349071177,1736961038477,-658.81,0.000434,30]
[349071178,1736961038487,-1537.24184387,0.000434,30]
[349071179,1736961038497,-1537.24184387,0.000434,30]
[349071180,1736961038507,-1537.24184387,0.000434,30]
[349071181,1736961038517,-1537.24184387,0.000434,30]
[349071182,1736961038527,-1537.24184387,0.000434,30]
[349071183,1736961038537,-1537.24184387,0.000434,30]
[349071184,1736961038546,-1537.24184387,0.000434,30]
[349071185,1736961038556,-1537.24184387,0.000434,30]
[349071186,1736961038566,-1537.24184387,0.000434,30]
[349071187,1736961038575,-1537.24184387,0.000434,30]
[349071188,1736961038584,-1537.24184387,0.000434,30]
[349071189,1736961038593,-1537.24184387,0.000434,30]
[349071190,1736961038603,-1537.24184387,0.000434,30]
[349071191,1736961038612,-1537.24184387,0.000434,30]
[349071192,1736961038622,-1537.24184387,0.000434,30]
[349071193,1736961038631,-1537.24184387,0.000434,30]
[349071194,1736961038640,-1537.24184387,0.000434,30]
[349071195,1736961038650,-1537.24184387,0.000434,30]
[349071196,1736961038659,-1537.24184387,0.000434,30]
[349071197,1736961038669,-1537.24,0.000434,30]
[349071198,1736961038678,-268.71,0.000434,30]
[349071199,1736961038687,-201.18250888,0.000434,30]
[349071200,1736961038697,-201.18,0.000434,30]
[349071201,1736961038706,-156.47528469,0.000434,30]
[349071202,1736961038716,-156.47528469,0.000434,30]
[349071203,1736961038725,-156.47528469,0.000434,30]
[349071204,1736961038735,-156.47528469,0.000434,30]
[349071205,1736961038744,-156.47528469,0.000434,30]
[349071206,1736961038754,-156.47,0.000434,30]
[349071207,1736961038762,-1299.36907059,0.000434,18]
[349071208,1736961038771,-196.76777733,0.000434,120]
[349071209,1736961038780,-3000.0,0.000434,18]
[349071210,1736961038789,-312.80282956,0.000434,2]
[349071211,1736961038800,-4286.96278674,0.000434,30]
[349071212,1736961038809,-191.53875226,0.00043473,10]
[349071213,1736961038819,-9650.0,0.00043479,120]
[349071214,1736961038828,-326.83337483,0.00043484,31]
[349071215,1736961038836,-106392.66054345,0.00043485,120]
[349071216,1736961038849,-1896.1943,0.00043485,120]
[349071218,1736961039615,-45138.70086205,0.00042,2]
[349071219,1736961039628,-500.0,0.00042,2]
[349071220,1736961039640,-6029.48000006,0.00042,2]
[349071221,1736961039651,-239141.81913789,0.00042,2]
[349071222,1736961039661,-455852.53650784,0.00043485,120]
[349071223,1736961039670,-163.16,0.00043486,7]
[349071224,1736961039680,-1120.12,0.00043487,7]
[349071225,1736961039689,-2415.21,0.00043487,7]
[349071226,1736961039699,-1026.5,0.00043487,7]
[349071227,1736961039708,-716.96,0.00043487,7]
[349071228,1736961039718,-1656.98,0.00043487,7]
[349071229,1736961039727,-500.0,0.00043487,7]
[349071230,1736961039735,-666.66,0.00043487,7]
[349071231,1736961039744,-152.742293,0.00043487,7]
[349071232,1736961039754,-668.51,0.00043487,7]
[349071233,1736961039763,-500.0,0.00043487,7]
[349071234,1736961039775,-1823.64,0.00043487,7]
[349071235,1736961039785,-866.3,0.00043487,7]
[349071236,1736961039795,-500.0,0.00043487,7]
[349071237,1736961039807,-829.5,0.00043487,7]
[349071238,1736961039818,-2381.17,0.00043487,7]
[349071239,1736961039828,-633.06,0.00043487,7]
[349071240,1736961039838,-736.03,0.00043487,7]
[349071241,1736961039848,-1113.15,0.00043487,7]
[349071242,1736961039857,-533.51,0.00043487,7]
[349071243,1736961039867,-570.29,0.00043487,7]
[349071244,1736961039877,-500.0,0.00043487,7]
[349071245,1736961039886,-1641.19,0.00043487,7]
[349071246,1736961039895,-703.75,0.00043487,7]
[349071247,1736961039905,-500.0,0.00043488,7]
[349071258,1736961040111,-500.0,0.00043488,7]
[349071260,1736961040121,-500.0,0.00043488,7]
[349071262,1736961040131,-500.0,0.00043488,7]
[349071265,1736961040142,-500.0,0.00043488,7]
[349071266,1736961040151,-500.0,0.00043488,7]
[349071269,1736961040161,-500.0,0.00043488,7]
[349071270,1736961040170,-500.0,0.00043488,7]
[349071273,1736961040180,-500.0,0.00043488,7]
[349071275,1736961040190,-454.09180631,0.00043488,7]
[349071277,1736961040200,-500.0,0.00043488,7]
[349071278,1736961040209,-500.0,0.00043488,7]
[349071280,1736961040219,-564.67,0.00043488,7]
[349071282,1736961040228,-500.0,0.00043488,7]
[349071284,1736961040237,-500.0,0.00043488,7]
[349071286,1736961040248,-500.0,0.00043488,7]
[349071288,1736961040258,-500.0,0.00043488,7]
[349071290,1736961040268,-500.0,0.00043488,7]
[349071292,1736961040280,-500.0,0.00043488,7]
[349071294,1736961040289,-500.0,0.00043488,7]
[349071296,1736961040298,-500.0,0.00043488,7]
[349071298,1736961040308,-500.0,0.00043488,7]
[349071300,1736961040318,-500.0,0.00043488,7]
[349071302,1736961040329,-500.0,0.00043488,7]
[349071304,1736961040340,-500.0,0.00043488,7]
[349071306,1736961040349,-624.77,0.00043488,7]
[349071308,1736961040358,-500.0,0.00043488,7]
[349071310,1736961040369,-265.23756802,0.00043488,7]
[349071312,1736961040378,-500.0,0.00043488,7]
[349071314,1736961040388,-197.97,0.00043488,7]
[349071316,1736961040397,-552.28,0.00043488,7]
[349071318,1736961040409,-253.87862417,0.00043488,7]
[349071320,1736961040419,-500.0,0.00043488,7]
[349071322,1736961040429,-500.0,0.00043488,7]
[349071324,1736961040438,-500.0,0.00043488,7]
[349071326,1736961040448,-500.0,0.00043488,7]
[349071328,1736961040457,-500.0,0.00043488,7]
[349071330,1736961040468,-500.0,0.00043488,7]
[349071332,1736961040477,-500.0,0.00043488,7]
[349071334,1736961040486,-500.0,0.00043488,7]
[349071336,1736961040498,-500.0,0.00043488,7]
[349071338,1736961040507,-500.0,0.00043488,7]
[349071340,1736961040517,-500.46465182,0.00043488,7]
[349071342,1736961040528,-500.0,0.00043488,7]
[349071344,1736961040538,-500.0,0.00043488,7]
[349071346,1736961040548,-500.0,0.00043488,7]
[349071348,1736961040557,-500.0,0.00043488,7]
[349071350,1736961040568,-500.0,0.00043488,7]
[349071352,1736961040578,-500.0,0.00043488,7]
[349071354,1736961040587,-500.0,0.00043488,7]
[349071356,1736961040596,-500.0,0.00043488,7]
[349071358,1736961040605,-395.37373169,0.00043488,7]
[349071360,1736961040615,-500.0,0.00043488,7]
[349071362,1736961040624,-500.0,0.00043488,7]
[349071364,1736961040633,-500.0,0.00043488,7]
[349071366,1736961040642,-500.0,0.00043488,7]
[349071368,1736961040651,-500.0,0.00043488,7]
[349071370,1736961040661,-500.0,0.00043488,7]
[349071372,1736961040671,-500.0,0.00043488,7]
[349071373,1736961040680,-500.0,0.00043488,7]
[349071375,1736961040690,-500.0,0.00043488,7]
[349071377,1736961040699,-500.0,0.00043488,7]
[349071379,1736961040709,-500.0,0.00043488,7]
[349071381,1736961040719,-500.0,0.00043488,7]
[349071383,1736961040729,-500.0,0.00043488,7]
[349071385,1736961040739,-500.0,0.00043488,7]
[349071387,1736961040749,-500.0,0.00043488,7]
[349071389,1736961040759,-500.0,0.00043488,7]
[349071391,1736961040769,-500.0,0.00043488,7]
[349071392,1736961040778,-500.0,0.00043488,7]
[349071394,1736961040789,-500.0,0.00043488,7]
[349071397,1736961040798,-500.0,0.00043488,7]
[349071399,1736961040809,-500.0,0.00043488,7]
[349071400,1736961040819,-500.0,0.00043488,7]
[349071402,1736961040829,-257.33644815,0.00043488,7]
[349071404,1736961040839,-500.0,0.00043488,7]
[349071406,1736961040848,-500.0,0.00043488,7]
[349071408,1736961040858,-500.0,0.00043488,7]
[349071410,1736961040868,-275.99524734,0.00043488,7]
[349071412,1736961040879,-500.0,0.00043488,7]
[349071414,1736961040889,-500.0,0.00043488,7]
[349071416,1736961040899,-500.0,0.00043488,7]
[349071418,1736961040909,-500.0,0.00043488,7]
[349071420,1736961040919,-500.0,0.00043488,7]
[349071422,1736961040929,-500.0,0.00043488,7]
[349071424,1736961040938,-500.0,0.00043488,7]
[349071426,1736961040947,-563.77,0.00043488,7]
[349071428,1736961040957,-500.0,0.00043488,7]
[349071430,1736961040968,-511.412713,0.00043488,7]
[349071432,1736961040978,-597.77,0.00043488,7]
[349071434,1736961040988,-500.0,0.00043488,7]
[349071436,1736961040997,-500.0,0.00043488,7]
[349071437,1736961041007,-527.90947784,0.00043488,7]
[349071439,1736961041017,-500.0,0.00043488,7]
[349071442,1736961041030,-500.0,0.00043488,7]
[349071443,1736961041039,-500.0,0.00043488,7]
[349071445,1736961041049,-500.0,0.00043488,7]
[349071447,1736961041060,-500.0,0.00043488,7]
[349071450,1736961041072,-500.0,0.00043488,7]
[349071451,1736961041082,-500.0,0.00043488,7]
[349071454,1736961041092,-500.0,0.00043488,7]
[349071455,1736961041103,-500.0,0.00043488,7]
[349071457,1736961041113,-500.0,0.00043488,7]
[349071459,1736961041123,-500.0,0.00043488,7]
[349071461,1736961041134,-500.0,0.00043488,7]
[349071463,1736961041145,-500.0,0.00043488,7]
[349071465,1736961041154,-500.0,0.00043488,7]
[349071468,1736961041164,-500.0,0.00043488,7]
[349071469,1736961041174,-649.17,0.00043488,7]
[349071472,1736961041185,-500.0,0.00043488,7]
[349071473,1736961041195,-500.0,0.00043488,7]
[349071475,1736961041205,-500.0,0.00043488,7]
[349071477,1736961041214,-500.0,0.00043488,7]
[349071479,1736961041224,-500.0,0.00043488,7]
[349071481,1736961041234,-500.0,0.00043488,7]
[349071483,1736961041244,-500.0,0.00043488,7]
[349071485,1736961041253,-500.0,0.00043488,7]
[349071487,1736961041262,-500.0,0.00043488,7]
[349071489,1736961041272,-664.34,0.00043488,7]
[349071491,1736961041284,-500.0,0.00043488,7]
[349071493,1736961041294,-500.0,0.00043488,7]
[349071495,1736961041303,-500.0,0.00043488,7]
[349071497,1736961041312,-500.0,0.00043488,7]
[349071499,1736961041322,-461.31746517,0.00043488,7]
[349071501,1736961041335,-500.0,0.00043488,7]
[349071503,1736961041345,-500.0,0.00043488,7]
[349071505,1736961041354,-500.0,0.00043488,7]
[349071507,1736961041364,-500.0,0.00043488,7]
[349071509,1736961041374,-440.24106151,0.00043488,7]
[349071510,1736961041383,-500.0,0.00043488,7]
[349071512,1736961041393,-500.0,0.00043488,7]
[349071514,1736961041403,-500.0,0.00043488,7]
[349071516,1736961041414,-515.99,0.00043488,7]
[349071518,1736961041423,-500.0,0.00043488,7]
[349071520,1736961041432,-500.0,0.00043488,7]
[349071522,1736961041442,-500.0,0.00043488,7]
[349071524,1736961041452,-500.0,0.00043488,7]
[349071526,1736961041461,-500.0,0.00043488,7]
[349071528,1736961041470,-500.0,0.00043488,7]
[349071530,1736961041481,-500.0,0.00043488,7]
[349071531,1736961041491,-500.0,0.00043488,7]
[349071533,1736961041500,-500.0,0.00043488,7]
[349071535,1736961041509,-500.0,0.00043488,7]
[349071537,1736961041519,-500.0,0.00043488,7]
[349071539,1736961041532,-500.0,0.00043488,7]
[349071541,1736961041542,-500.0,0.00043488,7]
[349071543,1736961041552,-586.89856661,0.00043488,7]
[349071545,1736961041561,-500.0,0.00043488,7]
[349071547,1736961041571,-500.0,0.00043488,7]
[349071549,1736961041581,-500.0,0.00043488,7]
[349071551,1736961041590,-500.0,0.00043488,7]
[349071553,1736961041599,-500.0,0.00043488,7]
[349071555,1736961041610,-500.0,0.00043488,7]
[349071557,1736961041619,-681.72,0.00043488,7]
[349071559,1736961041628,-500.0,0.00043488,7]
[349071561,1736961041637,-500.0,0.00043488,7]
[349071563,1736961041647,-500.0,0.00043488,7]
[349071565,1736961041657,-789.35,0.00043488,7]
[349071567,1736961041667,-500.0,0.00043488,7]
[349071568,1736961041677,-500.0,0.00043488,7]
[349071570,1736961041687,-500.0,0.00043488,7]
[349071572,1736961041697,-500.0,0.00043488,7]
[349071574,1736961041707,-500.0,0.00043488,7]
[349071576,1736961041717,-742.18,0.00043488,7]
[349071578,1736961041726,-500.0,0.00043488,7]
[349071580,1736961041736,-636.70667932,0.00043488,7]
[349071582,1736961041745,-500.0,0.00043488,7]
[349071584,1736961041755,-500.0,0.00043488,7]
[349071586,1736961041766,-500.0,0.00043488,7]
[349071588,1736961041778,-500.0,0.00043488,7]
[349071590,1736961041790,-500.0,0.00043488,7]
[349071592,1736961041799,-500.0,0.00043488,7]
[349071594,1736961041810,-500.0,0.00043488,7]
[349071596,1736961041819,-499.99032749,0.00043488,7]
[349071598,1736961041829,-500.0,0.00043488,7]
[349071600,1736961041839,-500.0,0.00043488,7]
[349071602,1736961041848,-504.02598831,0.00043488,7]
[349071604,1736961041857,-500.0,0.00043488,7]
[349071606,1736961041867,-637.7,0.00043488,7]
[349071608,1736961041877,-500.0,0.00043488,7]
[349071609,1736961041888,-503.40159641,0.00043488,7]
[349071611,1736961041898,-500.0,0.00043488,7]
[349071613,1736961041908,-500.0,0.00043488,7]
[349071614,1736961041917,-636.63069971,0.00043488,7]
[349071615,1736961041927,-501.28511201,0.00043488,7]
[349071616,1736961041936,-500.0,0.00043488,7]
[349071617,1736961041945,-500.0,0.00043488,7]
[349071618,1736961041954,-500.0,0.00043488,7]
[349071619,1736961041963,-504.00312126,0.00043488,7]
[349071620,1736961041972,-500.0,0.00043488,7]
[349071621,1736961041981,-500.0,0.00043488,7]
[349071622,1736961041991,-500.0,0.00043488,7]